bitfinex/quotes_BTCUSD_20260221
["timestamp","ask_amount","ask_price","bid_price","bid_amount"]
[1771699062649,0.25654504,68609.0,68597.0,0.07288915]
[1771699062868,0.07288099,68605.0,68597.0,0.07288915]
[1771699063234,0.07288019,68606.0,68597.0,0.07288915]
[1771699063433,0.07287886,68607.0,68598.0,0.02388639]
[1771699063631,0.07287886,68607.0,68599.0,0.07288731]
[1771699063831,0.07287999,68606.0,68598.0,0.0967747]
[1771699064674,0.0728812,68605.0,68598.0,0.02388639]
[1771699064886,0.07288007,68606.0,68598.0,0.09677456]
[1771699065503,0.0002,68602.0,68598.0,0.09677456]
[1771699066408,0.0002,68602.0,68597.0,0.07288936]
[1771699066907,0.0002,68602.0,68598.0,0.001]
[1771699068000,0.07288621,68601.0,68593.0,0.0728934]
[1771699068201,0.07288621,68601.0,68593.0,0.07289373]
[1771699068405,0.0002,68602.0,68593.0,0.07289373]
[1771699068605,0.0002,68602.0,68598.0,0.07288761]
[1771699068807,0.0002,68602.0,68597.0,0.07288763]
[1771699069010,0.0002,68602.0,68597.0,0.07388763]
[1771699069413,0.0002,68602.0,68597.0,0.07288763]
[1771699069793,0.0012,68602.0,68596.0,0.07289049]
[1771699069997,0.23157358,68601.0,68590.0,0.00016]
[1771699070225,0.11362161,68610.0,68590.0,0.00016]
[1771699070226,0.00016,68610.0,68590.0,0.00016]
[1771699070423,0.00016,68610.0,68598.0,0.02388639]
[1771699071026,0.07287884,68608.0,68599.0,0.07288631]
[1771699071187,0.07287673,68609.0,68598.0,0.0967738]
[1771699071388,0.07303673,68610.0,68598.0,0.02388639]
[1771699071611,0.07288194,68605.0,68598.0,0.02388639]
[1771699071812,0.07288194,68605.0,68596.0,0.07289034]
[1771699072652,0.07288194,68605.0,68597.0,0.00022]
[1771699073530,0.07288194,68605.0,68597.0,0.07310921]
[1771699075542,0.07288194,68605.0,68597.0,0.07410921]
[1771699075742,0.07288461,68602.0,68597.0,0.00122]
[1771699075944,0.07288461,68602.0,68593.0,0.07289331]
[1771699075945,0.30445819,68602.0,68595.0,0.07289155]
[1771699076187,0.07288461,68602.0,68595.0,0.07289155]
[1771699076348,0.07288313,68603.0,68595.0,0.07289155]
[1771699077230,0.07288313,68603.0,68595.0,0.07389155]
[1771699077826,0.02497146,68605.0,68595.0,0.001]
[1771699078027,0.07288804,68599.0,68591.0,0.07289586]
[1771699078227,0.07288889,68598.0,68590.0,0.07339239]
[1771699078348,0.25654504,68602.0,68590.0,0.00049631]
[1771699078552,0.31649174,68606.0,68593.0,0.07289282]
[1771699078755,0.07288502,68602.0,68593.0,0.07289282]
[1771699080572,0.07288502,68602.0,68595.0,0.00022]
[1771699081759,0.0002,68605.0,68598.0,0.07288827]
[1771699082140,0.0002,68605.0,68597.0,0.07288946]
[1771699082337,0.0002,68605.0,68599.0,0.02388639]
[1771699082741,0.0002,68605.0,68599.0,0.09677363]
[1771699083161,0.0002,68605.0,68602.0,0.07288401]
[1771699083359,0.0002,68605.0,68601.0,0.09677155]
[1771699083811,0.0002,68605.0,68602.0,0.07288397]
[1771699083986,0.0728768,68609.0,68602.0,0.09677036]
[1771699084172,0.0728768,68609.0,68602.0,0.02388639]
[1771699084577,0.0728768,68609.0,68602.0,0.02374174]
[1771699084775,0.0728768,68609.0,68602.0,0.0235971]
[1771699084978,0.0728768,68609.0,68602.0,0.09648121]
[1771699085304,0.07303593,68610.0,68603.0,0.02388639]
[1771699086480,0.07287819,68608.0,68600.0,0.07288418]
[1771699086805,0.07287899,68607.0,68599.0,0.0728872]
[1771699087504,0.07287819,68608.0,68600.0,0.07288595]
[1771699087909,0.24003984,68609.0,68598.0,0.02388639]
[1771699088108,0.07287995,68606.0,68598.0,0.02388639]
[1771699089631,0.0728792,68607.0,68599.0,0.07288691]
[1771699090449,0.0002,68606.0,68599.0,0.07288691]
[1771699092724,0.23305533,68605.0,68597.0,0.07310736]
[1771699093334,0.0002,68606.0,68599.0,0.07288534]
[1771699093534,0.23305533,68603.0,68590.0,0.00049631]
[1771699093735,0.02424053,68601.0,68590.0,0.00049631]
[1771699094135,0.02424053,68601.0,68591.0,0.29158147]
[1771699094303,0.02424053,68601.0,68595.0,0.07289086]
[1771699094509,0.02424053,68601.0,68593.0,0.07289277]
[1771699095096,0.02424053,68601.0,68595.0,0.07289086]
[1771699095246,0.02424053,68601.0,68590.0,0.00049631]
[1771699095660,0.02424053,68601.0,68595.0,0.0728913]
[1771699096842,0.02424053,68601.0,68594.0,0.07289232]
[1771699097237,0.02424053,68601.0,68595.0,0.00022]
[1771699097586,0.02524053,68601.0,68595.0,0.0731116]
[1771699097787,0.02424053,68599.0,68590.0,0.00049631]
[1771699097941,0.02424053,68599.0,68591.0,0.07289513]
[1771699098148,0.02424053,68599.0,68590.0,0.07339118]
[1771699098331,0.02424053,68599.0,68591.0,0.07289586]
[1771699099469,0.02424053,68595.0,68588.0,0.07289814]
[1771699099667,0.02435682,68595.0,68584.0,0.29161087]
[1771699100035,0.00011629,68595.0,68583.0,0.00022]
[1771699100236,0.02424053,68589.0,68582.0,0.07290535]
[1771699100475,0.02424053,68589.0,68581.0,0.07312623]
[1771699100655,0.09713931,68589.0,68581.0,0.00022]
[1771699100870,0.00011629,68595.0,68575.0,0.0002023]
[1771699100871,0.00016,68590.0,68575.0,0.0002023]
[1771699101076,0.00016,68590.0,68570.0,0.00038]
[1771699101077,0.02424053,68580.0,68574.0,0.07291381]
[1771699101282,0.02424053,68580.0,68575.0,0.07291222]
[1771699101598,0.02424053,68580.0,68572.0,0.07291603]
[1771699101958,0.02424053,68580.0,68572.0,0.07291587]
[1771699102176,0.02424053,68580.0,68573.0,0.07291453]
[1771699104173,0.02424053,68580.0,68577.0,0.00022]
[1771699105195,0.02524053,68580.0,68577.0,0.00022]
[1771699105408,0.02424053,68580.0,68577.0,0.00022]
[1771699106203,0.07289938,68588.0,68578.0,0.07290967]
[1771699106403,0.23305533,68587.0,68570.0,0.02306888]
[1771699106598,0.07290651,68581.0,68570.0,0.07329784]
[1771699106845,0.09714704,68581.0,68570.0,0.07329784]
[1771699107404,0.09714704,68581.0,68572.0,0.07291589]
[1771699107818,0.09714704,68581.0,68577.0,0.001]
[1771699108017,0.09714704,68581.0,68572.0,0.07291589]
[1771699108245,0.07290755,68580.0,68572.0,0.07291589]
[1771699109012,0.0971473,68581.0,68572.0,0.07291589]
[1771699109284,0.07290677,68581.0,68572.0,0.07291589]
[1771699109412,0.001,68580.0,68572.0,0.07291589]
[1771699110510,0.001,68580.0,68573.0,0.07291499]
[1771699110656,0.07290677,68581.0,68573.0,0.07291499]
[1771699111026,0.07390677,68581.0,68573.0,0.07291499]
[1771699111850,0.07290677,68581.0,68573.0,0.07291499]
[1771699112033,0.001,68580.0,68573.0,0.07291499]
[1771699112254,0.07290677,68581.0,68573.0,0.07291499]
[1771699112577,0.07290576,68582.0,68574.0,0.0729135]
[1771699112778,0.001,68581.0,68574.0,0.0729135]
[1771699113128,0.07390668,68581.0,68574.0,0.0729135]
[1771699113826,0.07290668,68581.0,68574.0,0.0729135]
[1771699114314,0.001,68580.0,68574.0,0.0729135]
[1771699114557,0.07290668,68581.0,68574.0,0.0729135]
[1771699114961,0.07290668,68581.0,68572.0,0.07291589]
[1771699114962,0.07290767,68580.0,68573.0,0.07291473]
[1771699115165,0.07290767,68580.0,68573.0,0.07291467]
[1771699116544,0.07290668,68581.0,68573.0,0.07291467]
[1771699117074,0.07290501,68583.0,68574.0,0.07313308]
[1771699118056,0.07290678,68581.0,68574.0,0.07313308]
[1771699118258,0.07290501,68583.0,68574.0,0.07313308]
[1771699118453,0.07290351,68584.0,68575.0,0.07291286]
[1771699118779,0.07290446,68583.0,68576.0,0.07291112]
[1771699119384,0.07290542,68582.0,68575.0,0.07291286]
[1771699121194,0.07290704,68581.0,68574.0,0.00022]
[1771699121404,0.07290704,68581.0,68574.0,0.07313391]
[1771699121809,0.07290704,68581.0,68575.0,0.001]
[1771699122033,0.07290784,68580.0,68574.0,0.00022]
[1771699122981,0.07290935,68579.0,68574.0,0.00022]
[1771699123181,0.07291079,68577.0,68570.0,0.00038]
[1771699124182,0.07291079,68577.0,68570.0,0.00138]
[1771699124383,0.07291193,68576.0,68570.0,0.00138]
[1771699124598,0.07291193,68576.0,68574.0,0.00022]
[1771699129311,0.07291286,68575.0,68574.0,0.00022]
[1771699129560,0.07291286,68575.0,68570.0,0.00038]
[1771699130121,0.07291475,68574.0,68570.0,0.00038]
[1771699130329,0.07291286,68575.0,68570.0,0.00038]
[1771699130969,0.07291309,68575.0,68570.0,0.00038]
[1771699134012,0.07290755,68580.0,68570.0,0.00038]
[1771699134155,0.07291445,68574.0,68569.0,0.00022]
[1771699139755,0.07291189,68576.0,68569.0,0.00022]
[1771699140576,0.29179322,68580.0,68569.0,0.00022]
[1771699140577,0.07290995,68578.0,68571.0,0.07291619]
[1771699141724,0.07290885,68579.0,68571.0,0.07291712]
[1771699142448,0.07291,68578.0,68571.0,0.07291712]
[1771699143058,0.07290784,68580.0,68573.0,0.07291427]
[1771699143257,0.07290784,68580.0,68573.0,0.32045707]
[1771699143474,0.00016,68590.0,68572.0,0.2475428]
[1771699143671,0.29159194,68589.0,68577.0,0.07290968]
[1771699143852,0.07289798,68589.0,68575.0,0.07291083]
[1771699144036,0.07290258,68585.0,68577.0,0.07291044]
[1771699144235,0.16362605,68590.0,68577.0,0.07291064]
[1771699144434,0.16362605,68590.0,68575.0,0.0978666]
[1771699144435,0.07290362,68584.0,68576.0,0.0729118]
[1771699144850,0.07290362,68584.0,68576.0,0.07291118]
[1771699145071,0.07290445,68583.0,68575.0,0.09786846]
[1771699145831,0.0002,68578.0,68576.0,0.0729118]
[1771699145954,0.0002,68578.0,68577.0,0.02495577]
[1771699146979,0.0002,68578.0,68577.0,0.02595577]
[1771699147224,0.0002,68578.0,68577.0,0.09886651]
[1771699148105,0.0002,68578.0,68577.0,0.09786651]
[1771699148631,0.00016,68590.0,68579.0,0.31564208]
[1771699148865,0.0730572,68590.0,68581.0,0.07290595]
[1771699149057,0.0730572,68590.0,68582.0,0.07290473]
[1771699149602,0.00016,68590.0,68584.0,0.07290325]
[1771699150210,0.07305698,68590.0,68582.0,0.07290473]
[1771699150405,0.00116,68590.0,68580.0,0.07290693]
[1771699150617,0.07289986,68588.0,68581.0,0.07290629]
[1771699151140,0.07294508,68588.0,68581.0,0.07290629]
[1771699151541,4.522e-05,68588.0,68582.0,0.0729053]
[1771699151898,4.522e-05,68588.0,68584.0,0.07290242]
[1771699152424,0.00116,68590.0,68586.0,0.07290011]
[1771699152425,0.00136,68590.0,68586.0,0.07290011]
[1771699152624,0.00036,68590.0,68586.0,0.09638912]
[1771699152823,0.00036,68590.0,68585.0,0.07290198]
[1771699153032,0.00036,68590.0,68586.0,0.072901]
[1771699153277,0.00036,68590.0,68585.0,0.07294543]
[1771699158896,0.00036,68590.0,68586.0,0.07290107]
[1771699159310,0.00036,68590.0,68586.0,0.07290113]
[1771699160170,0.00036,68590.0,68585.0,0.07294543]
[1771699162015,0.00036,68590.0,68586.0,0.07290073]
[1771699168370,0.00036,68590.0,68585.0,4.522e-05]
[1771699168577,0.00036,68590.0,68586.0,0.07290092]
[1771699172349,0.00036,68590.0,68586.0,0.07312092]
[1771699172772,0.2495794,68590.0,68569.0,0.00022]
[1771699172998,0.07289798,68589.0,68580.0,0.0729067]
[1771699173263,0.02469997,68588.0,68581.0,0.07290639]
[1771699173442,0.09759905,68588.0,68580.0,0.07290727]
[1771699173657,0.02469997,68588.0,68581.0,0.07290632]
[1771699173856,0.02469997,68588.0,68583.0,0.07290393]
[1771699174087,0.07425793,68590.0,68577.0,0.29163985]
[1771699174367,0.07289814,68589.0,68581.0,0.07290621]
[1771699174948,0.07289914,68588.0,68580.0,0.07290728]
[1771699179194,0.07290011,68587.0,68581.0,0.00022]
[1771699181114,0.07290377,68584.0,68581.0,0.00022]
[1771699182106,0.07290436,68583.0,68581.0,0.00022]
[1771699182586,0.07290542,68582.0,68581.0,0.00022]
[1771699182767,0.07290743,68581.0,68575.0,0.00022]
[1771699183285,0.02290743,68581.0,68575.0,0.00022]
[1771699184052,0.07290542,68582.0,68575.0,0.07313285]
[1771699184271,0.07290669,68581.0,68575.0,0.00022]
[1771699184915,0.07290542,68582.0,68575.0,0.00022]
[1771699186928,0.07290542,68582.0,68575.0,0.07313284]
[1771699188290,0.0729066,68581.0,68575.0,0.00022]
[1771699191213,0.07290542,68582.0,68575.0,0.07313286]
[1771699191771,0.09582264,68587.0,68579.0,0.07290777]
[1771699191969,0.07290129,68586.0,68579.0,0.07290777]
[1771699192176,0.09582205,68587.0,68579.0,0.07290777]
[1771699193226,0.07309936,68588.0,68579.0,0.07290777]
[1771699193428,0.07309936,68588.0,68580.0,0.07290755]
[1771699194023,0.07290022,68587.0,68580.0,0.07290755]
[1771699194981,0.0001885,68593.0,68583.0,0.33136195]
[1771699195188,0.0001885,68593.0,68584.0,0.0234491]
[1771699195381,0.07289672,68591.0,68583.0,0.07290351]
[1771699198365,0.07289672,68591.0,68584.0,0.07290322]
[1771699200071,0.07309672,68591.0,68584.0,0.07290322]
[1771699207638,0.0002,68591.0,68584.0,0.07290322]
[1771699207825,0.0002,68591.0,68587.0,0.07289998]
[1771699208944,0.0012,68591.0,68587.0,0.07289998]
[1771699209158,0.0012,68591.0,68586.0,0.07290095]
[1771699209706,0.00104094,68591.0,68586.0,0.07290095]
[1771699209946,0.00088187,68591.0,68586.0,0.07290095]
[1771699210158,0.0001885,68593.0,68586.0,0.07290095]
[1771699210457,0.07308261,68593.0,68586.0,0.07290095]
[1771699211266,0.07289498,68592.0,68585.0,0.07290197]
[1771699212944,0.0002,68591.0,68585.0,0.07290197]
[1771699214029,0.07289279,68594.0,68585.0,0.07290197]
[1771699214238,0.07288966,68597.0,68589.0,0.07289728]
[1771699214462,0.000284,68600.0,68589.0,0.07289728]
[1771699214666,0.000284,68600.0,68586.0,0.33737129]
[1771699214667,0.07289098,68596.0,68588.0,0.07289867]
[1771699215993,0.07289213,68595.0,68588.0,0.07289867]
[1771699216350,0.07289213,68595.0,68587.0,0.07289997]
[1771699216869,0.0728938,68593.0,68586.0,0.0729004]
[1771699219400,0.0728913,68596.0,68587.0,0.07289993]
[1771699219602,0.07289228,68595.0,68588.0,0.07289904]
[1771699219899,0.07309228,68595.0,68588.0,0.07289904]
[1771699223976,0.000284,68600.0,68584.0,0.00022]
[1771699224174,0.09686275,68596.0,68589.0,0.07289741]
[1771699224951,0.02397213,68596.0,68589.0,0.07289741]
[1771699225153,0.07288984,68597.0,68589.0,0.07289741]
[1771699225935,0.07288984,68597.0,68590.0,0.07289683]
[1771699226135,0.07288984,68597.0,68589.0,0.0728976]
[1771699226536,0.07288873,68598.0,68590.0,0.07289638]
[1771699227160,0.07288974,68597.0,68589.0,0.0728976]
[1771699228543,0.07288974,68597.0,68590.0,0.07289686]
[1771699229934,0.07289183,68595.0,68588.0,0.07289708]
[1771699232560,0.07309183,68595.0,68588.0,0.07289708]
[1771699233827,0.09686586,68593.0,68586.0,0.07290108]
[1771699234032,0.0002,68595.0,68586.0,0.07290108]
[1771699234212,0.07309243,68595.0,68587.0,0.07290011]
[1771699234561,0.07289301,68594.0,68587.0,0.07290011]
[1771699239417,0.07289301,68594.0,68587.0,0.07312011]
[1771699239786,0.0002,68595.0,68588.0,0.07289897]
[1771699240041,0.07309236,68595.0,68588.0,0.07289897]
[1771699240739,0.07309236,68595.0,68587.0,0.07311981]
[1771699244826,0.09726156,68594.0,68587.0,0.07311981]
[1771699245883,0.09726156,68594.0,68580.0,0.00038]
[1771699245884,0.02436882,68594.0,68580.0,0.00038]
[1771699246055,0.09726653,68590.0,68582.0,0.07290532]
[1771699247193,0.07289904,68588.0,68580.0,0.07328722]
[1771699247399,0.07290014,68587.0,68580.0,0.07328722]
[1771699248402,0.07289943,68588.0,68580.0,0.07328722]
[1771699248705,0.07289798,68590.0,68580.0,0.00038]
[1771699248861,0.02436882,68585.0,68577.0,0.00022]
[1771699249051,0.09727314,68585.0,68577.0,0.00022]
[1771699249252,0.09727314,68585.0,68577.0,0.07313003]
[1771699249448,0.02436882,68585.0,68577.0,0.00022]
[1771699250054,0.0729033,68584.0,68577.0,0.07313025]
[1771699250505,0.09727112,68585.0,68578.0,0.07290965]
[1771699251207,0.09727112,68585.0,68577.0,0.0731299]
[1771699252294,0.07289816,68589.0,68581.0,0.07290572]
[1771699252855,0.02436882,68596.0,68580.0,0.28186985]
[1771699253001,0.07289579,68592.0,68584.0,0.07290289]
[1771699253823,0.07289487,68592.0,68584.0,0.07290248]
[1771699254020,0.07273579,68592.0,68584.0,0.07290248]
[1771699254442,0.0725767,68592.0,68584.0,0.07290248]
[1771699255444,0.07241759,68592.0,68584.0,0.07290248]
[1771699256153,0.07289448,68593.0,68585.0,0.07290221]
[1771699259805,0.07309343,68594.0,68586.0,0.07290113]
[1771699261516,0.07309343,68594.0,68587.0,0.07289999]
[1771699262629,0.00016,68610.0,68587.0,0.02309565]
[1771699262805,0.00016,68610.0,68602.0,0.07288342]
[1771699263015,0.00023919,68610.0,68603.0,0.07288311]
[1771699263220,0.00023919,68610.0,68602.0,0.09597907]
[1771699263605,0.00023919,68610.0,68602.0,0.02309565]
[1771699264003,0.00023919,68610.0,68603.0,0.09597669]
[1771699264220,0.00023919,68610.0,68604.0,0.07288122]
[1771699264431,0.07287363,68612.0,68604.0,0.07288122]
[1771699264701,0.07287363,68612.0,68604.0,0.07288201]
[1771699265716,0.07299675,68613.0,68604.0,0.07288201]
[1771699265937,0.07299653,68613.0,68605.0,0.0728805]
[1771699266138,0.001,68610.0,68605.0,0.02309565]
[1771699266355,0.07287361,68612.0,68605.0,0.02309565]
[1771699267283,0.000124,68613.0,68606.0,0.07287894]
[1771699267486,0.000124,68613.0,68605.0,0.02309565]
[1771699267487,0.0729965,68613.0,68605.0,0.09597635]
[1771699267687,0.07287358,68612.0,68604.0,0.07288169]
[1771699268235,0.07307358,68612.0,68604.0,0.07288169]
[1771699269036,0.0002,68612.0,68608.0,0.07287766]
[1771699269250,0.0002,68612.0,68608.0,7.919e-05]
[1771699271691,0.07307357,68612.0,68608.0,7.919e-05]
[1771699271911,0.07307357,68612.0,68605.0,0.07288069]
[1771699272036,0.07313575,68612.0,68605.0,0.07288069]
[1771699272243,0.07287775,68609.0,68601.0,0.07288438]
[1771699272548,0.07287592,68610.0,68602.0,0.07288333]
[1771699272964,0.07287717,68609.0,68602.0,0.07288333]
[1771699274703,0.07307717,68609.0,68602.0,0.07288333]
[1771699275071,0.07291804,68609.0,68602.0,0.07288333]
[1771699277029,0.0002,68609.0,68602.0,0.07288351]
[1771699277319,0.0002,68609.0,68602.0,0.2915346]
[1771699277503,6.218e-05,68612.0,68607.0,0.07287865]
[1771699278598,0.02485753,68612.0,68607.0,0.07287865]
[1771699280438,0.02469833,68612.0,68607.0,0.07287865]
[1771699280848,0.02453915,68612.0,68607.0,0.07287865]
[1771699281142,0.02437996,68612.0,68609.0,0.0728764]
[1771699281298,0.000124,68613.0,68609.0,0.0728764]
[1771699281698,0.26562887,68619.0,68604.0,0.2915243]
[1771699281699,0.07298033,68625.0,68606.0,0.25791909]
[1771699281903,0.07286299,68622.0,68615.0,0.07286981]
[1771699282365,0.09765808,68623.0,68615.0,0.07286981]
[1771699283001,0.001284,68620.0,68615.0,0.07286981]
[1771699283789,0.000284,68620.0,68615.0,0.07286981]
[1771699284158,0.000284,68620.0,68614.0,0.07287112]
[1771699284991,0.000284,68620.0,68615.0,0.001]
[1771699285393,0.000284,68620.0,68614.0,0.07287112]
[1771699285688,0.000284,68620.0,68614.0,0.07387112]
[1771699286114,0.000284,68620.0,68611.0,0.07287412]
[1771699286335,0.07286686,68619.0,68611.0,0.07287412]
[1771699286714,0.09794463,68620.0,68612.0,0.0728733]
[1771699286874,0.00016,68630.0,68628.0,0.07285594]
[1771699287077,0.00016,68630.0,68628.0,0.07285562]
[1771699288112,0.00023917,68630.0,68629.0,0.07285549]
[1771699288285,0.000149,68634.0,68629.0,0.07285549]
[1771699288481,0.00024401,68633.0,68629.0,0.07285549]
[1771699289051,8.482e-05,68633.0,68629.0,0.07285549]
[1771699289252,0.0002,68630.0,68629.0,0.07285549]
[1771699290706,0.0002,68630.0,68628.0,0.07285655]
[1771699290916,0.0002,68630.0,68627.0,0.07285708]
[1771699291302,0.0002,68630.0,68610.0,0.0002642]
[1771699291303,0.02479535,68623.0,68610.0,0.0002642]
[1771699291511,0.02479535,68619.0,68600.0,0.00016]
[1771699291733,0.02479535,68613.0,68604.0,0.00028218]
[1771699292142,8.482e-05,68612.0,68607.0,0.0728781]
[1771699292343,0.02488017,68612.0,68607.0,0.0728781]
[1771699292922,0.02488017,68612.0,68605.0,0.0728807]
[1771699293118,0.02488017,68612.0,68604.0,0.00028218]
[1771699293725,0.02488017,68612.0,68605.0,0.07288098]
[1771699294130,8.482e-05,68612.0,68607.0,0.07287811]
[1771699295174,0.07279615,68615.0,68607.0,0.07287811]
[1771699295375,0.0975915,68615.0,68607.0,0.07287811]
[1771699295781,0.0975915,68615.0,68607.0,0.07309811]
[1771699300471,0.0002,68616.0,68607.0,0.00022]
[1771699300677,0.0002,68616.0,68609.0,0.07287662]
[1771699301421,0.0002,68616.0,68610.0,0.07287484]
[1771699301992,0.02420196,68616.0,68610.0,0.07287484]
[1771699302319,0.02520196,68616.0,68610.0,0.07287484]
[1771699303663,0.02420196,68616.0,68610.0,0.07287484]
[1771699304214,0.0002,68616.0,68610.0,0.07287484]
[1771699305230,0.07258944,68618.0,68610.0,0.07287484]
[1771699308188,0.07286827,68617.0,68610.0,0.07287484]
[1771699308351,0.07287059,68615.0,68607.0,0.0730981]
[1771699308564,0.07287158,68614.0,68607.0,0.0730981]
[1771699308725,0.07271236,68614.0,68607.0,0.0730981]
[1771699309598,0.09671432,68614.0,68607.0,0.00022]
[1771699309806,0.2694317,68618.0,68607.0,0.00022]
[1771699310008,0.09687751,68611.0,68604.0,0.00028218]
[1771699310180,0.09671827,68611.0,68604.0,0.07316416]
[1771699310385,0.02400196,68611.0,68604.0,0.00028218]
[1771699310780,0.02400196,68611.0,68605.0,0.0728801]
[1771699311168,0.02368341,68611.0,68604.0,0.07316402]
[1771699311699,0.02368341,68611.0,68607.0,0.00022]
[1771699311901,0.02368341,68611.0,68607.0,0.01022]
[1771699313594,0.07287365,68612.0,68607.0,0.01022]
[1771699314185,0.00017161,68610.0,68607.0,0.01022]
[1771699316917,1.232e-05,68610.0,68607.0,0.01022]
[1771699321527,0.06308597,68612.0,68607.0,0.01022]
[1771699325399,0.08708793,68612.0,68607.0,0.01022]
[1771699326141,0.0728799,68607.0,68600.0,0.00038]
[1771699326292,0.02400196,68604.0,68600.0,0.00038]
[1771699326688,0.02400196,68603.0,68600.0,0.00038]
[1771699327134,0.09688588,68603.0,68600.0,0.00038]
[1771699329578,0.02352688,68602.0,68600.0,0.00038]
[1771699335751,0.02352688,68602.0,68596.0,0.0001266]
[1771699336169,0.09641177,68602.0,68596.0,0.0001266]
[1771699336371,0.09749339,68600.0,68596.0,0.0001266]
[1771699336594,0.02460696,68597.0,68591.0,0.00022]
[1771699337407,0.07288874,68598.0,68591.0,0.00022]
[1771699337408,0.02460696,68595.0,68591.0,0.00022]
[1771699337871,0.02460696,68595.0,68590.0,0.0003]
[1771699338027,0.02460696,68595.0,68589.0,0.0001266]
[1771699338242,0.02460696,68595.0,68589.0,0.07302417]
[1771699338450,0.02460696,68595.0,68589.0,0.07289757]
[1771699338451,0.02471516,68595.0,68589.0,0.07289757]
[1771699338645,0.02471516,68595.0,68592.0,0.07289374]
[1771699339772,0.0001082,68595.0,68592.0,0.07289374]
[1771699340907,0.0001082,68595.0,68592.0,0.07389374]
[1771699342190,0.0001082,68595.0,68592.0,0.07289374]
[1771699342510,0.0001082,68595.0,68592.0,0.07389374]
[1771699342668,0.0001082,68595.0,68592.0,0.07289374]
[1771699343002,0.0001082,68595.0,68592.0,0.07389374]
[1771699344808,0.0001082,68595.0,68593.0,0.07289319]
[1771699345987,0.0001082,68595.0,68593.0,0.07389319]
[1771699346454,0.0001082,68595.0,68593.0,0.07289319]
[1771699347335,0.02460696,68594.0,68586.0,0.17526]
[1771699347540,0.02471516,68594.0,68587.0,0.07289938]
[1771699348831,0.02471516,68594.0,68592.0,0.00022]
[1771699349419,0.09760803,68594.0,68593.0,0.001]
[1771699349839,0.0001082,68594.0,68586.0,0.17526]
[1771699350086,0.0001082,68594.0,68587.0,0.07290006]
[1771699350087,0.07300097,68594.0,68587.0,0.07290006]
[1771699351940,0.0001082,68594.0,68587.0,0.07290006]
[1771699352780,0.0001082,68594.0,68586.0,0.24816113]
[1771699352781,2.82e-05,68594.0,68588.0,0.07289886]
[1771699357518,2.82e-05,68594.0,68587.0,0.07311971]
[1771699358082,0.07292106,68594.0,68587.0,0.07311971]
[1771699361166,2.82e-05,68594.0,68588.0,0.07289876]
[1771699361369,0.09769857,68595.0,68588.0,0.07289876]
[1771699361780,0.07309161,68595.0,68588.0,0.07289876]
[1771699362226,0.0002,68595.0,68588.0,0.07289876]
[1771699363429,0.07309242,68595.0,68587.0,0.07311971]
[1771699365690,0.07289443,68593.0,68587.0,0.00022]
[1771699366681,0.07289443,68593.0,68588.0,0.159693]
[1771699366851,0.02341818,68592.0,68588.0,0.159693]
[1771699368979,0.02341818,68592.0,68588.0,0.159913]
[1771699371911,0.02341818,68592.0,68586.0,0.07312063]
[1771699380467,0.02341818,68592.0,68586.0,0.00022]
[1771699381968,0.29158344,68592.0,68580.0,0.00038]
[1771699382166,0.02341818,68584.0,68579.0,0.00022]
[1771699382376,0.07260788,68585.0,68579.0,0.00022]
[1771699383177,0.57565769,68589.0,68581.0,0.07290558]
[1771699383178,0.07289873,68589.0,68581.0,0.07290558]
[1771699383374,0.07289798,68589.0,68581.0,0.09603489]
[1771699384042,0.0728994,68588.0,68581.0,0.07296211]
[1771699384245,0.0728994,68588.0,68581.0,5.653e-05]
[1771699387340,0.0728994,68588.0,68581.0,0.07296294]
[1771699387537,0.0728994,68588.0,68581.0,5.653e-05]
[1771699388822,0.0728994,68588.0,68581.0,0.07296299]
[1771699389579,0.0728994,68588.0,68581.0,0.07318299]
[1771699391077,0.07289825,68589.0,68581.0,0.00027653]
[1771699391380,0.07289825,68589.0,68581.0,0.02439499]
[1771699391877,0.07289825,68589.0,68582.0,0.07290511]
[1771699394868,0.07289825,68589.0,68581.0,0.07318268]
[1771699395813,0.07309825,68589.0,68581.0,0.07318268]
[1771699401570,0.07309825,68589.0,68582.0,0.07290532]
[1771699404899,0.0002,68589.0,68581.0,0.00027653]
[1771699405470,0.0002,68589.0,68584.0,0.07290233]
[1771699405891,0.0002,68589.0,68584.0,0.0729029]
[1771699407822,0.0002,68589.0,68585.0,0.07290148]
[1771699408202,0.0002,68589.0,68583.0,0.07290358]
[1771699409585,0.0002,68589.0,68585.0,0.07290187]
[1771699410300,0.0002,68594.0,68588.0,0.07289874]
[1771699413824,0.0001603,68598.0,68587.0,0.02411846]
[1771699413996,0.0001603,68598.0,68590.0,0.07289623]
[1771699414142,0.07304874,68598.0,68590.0,0.07289623]
[1771699414338,0.07288979,68597.0,68590.0,0.07289623]
[1771699414594,0.0002,68594.0,68590.0,0.07289623]
[1771699415161,0.0002,68594.0,68589.0,0.07289624]
[1771699420536,0.0002,68594.0,68587.0,0.09701792]
[1771699420537,0.07309271,68594.0,68587.0,0.09701781]
[1771699421290,0.07309271,68594.0,68589.0,0.00022]
[1771699421837,0.0002,68594.0,68589.0,0.00022]
[1771699422831,0.07309268,68594.0,68589.0,0.00022]
[1771699427247,0.09586166,68593.0,68585.0,0.07290184]
[1771699427393,0.09586166,68593.0,68586.0,0.07290105]
[1771699428575,0.09586166,68593.0,68589.0,0.00022]
[1771699431106,0.07289396,68593.0,68589.0,0.00022]
[1771699431742,0.07289489,68592.0,68589.0,0.00022]
[1771699437519,0.07289586,68591.0,68589.0,0.00022]
[1771699440461,0.0229677,68592.0,68582.0,0.00022]
[1771699440641,0.07289994,68588.0,68582.0,0.00022]
[1771699442928,0.07289904,68588.0,68582.0,0.00022]
[1771699443119,0.07290089,68587.0,68582.0,0.00022]
[1771699443318,0.0229677,68586.0,68582.0,0.00022]
[1771699443528,0.07289798,68589.0,68582.0,0.00022]
[1771699444222,0.07289599,68591.0,68582.0,0.07312527]
[1771699444421,0.07289599,68591.0,68582.0,0.07312538]
[1771699444577,0.07289692,68590.0,68582.0,0.07312538]
[1771699446239,0.07289804,68589.0,68582.0,0.07312538]
[1771699447150,0.07289804,68589.0,68582.0,0.00022]
[1771699448062,0.07290002,68588.0,68582.0,0.00022]
[1771699448265,0.02265791,68586.0,68582.0,0.00022]
[1771699452923,0.02265791,68586.0,68581.0,0.00027653]
[1771699453284,0.09555988,68586.0,68581.0,0.00027653]
[1771699454273,0.09555988,68586.0,68582.0,0.00022]
[1771699454430,0.07290197,68586.0,68582.0,0.00022]
[1771699459012,0.0729005,68587.0,68582.0,0.00022]
[1771699467373,0.0002,68589.0,68582.0,0.00022]
[1771699467571,0.14605585,68595.0,68584.0,0.07290303]
[1771699467795,0.0002,68595.0,68583.0,0.02447066]
[1771699468337,0.001,68587.0,68583.0,0.02447066]
[1771699468537,0.001,68587.0,68584.0,0.0729033]
[1771699469533,0.07289615,68591.0,68584.0,0.0729033]